bitfinex-derivatives/quotes_ETHF0:USTF0_20250530
["timestamp","ask_amount","ask_price","bid_price","bid_amount"]
[1748594641122,1.2578,2621.2,2621.1,0.76273]
[1748594641424,5.11423,2621.7,2621.1,0.76273]
[1748594641425,3.2078,2621.7,2621.1,1.90681]
[1748594641625,0.76266,2621.4,2621.1,1.8525]
[1748594641817,0.76268,2621.3,2621.2,4.80869]
[1748594642013,0.76263,2621.5,2621.4,0.76264]
[1748594642727,1.3127,2621.6,2621.2,4.046]
[1748594642933,0.76262,2621.5,2621.3,0.76265]
[1748594643118,0.6582,2621.8,2621.7,0.76256]
[1748594643324,0.76251,2621.9,2621.8,0.76253]
[1748594643626,1.08733493,2621.9,2621.8,0.76253]
[1748594644125,3.2078,2622.1,2622.0,0.76247]
[1748594644330,0.00572,2622.2,2622.1,0.76244]
[1748594644514,1.09325567,2622.2,2622.1,2.76074]
[1748594644722,0.00572,2622.2,2622.1,2.76074]
[1748594645126,0.00572,2622.2,2622.1,6.80674]
[1748594646325,3.21352,2622.2,2621.9,4.046]
[1748594646528,0.76247,2622.0,2621.9,4.046]
[1748594647420,3.97594,2622.2,2621.9,4.046]
[1748594647626,3.97594,2622.2,2621.9,5.2967]
[1748594647823,3.97594,2622.2,2622.1,0.76244]
[1748594648330,0.00572,2622.2,2622.1,0.76244]
[1748594649429,0.00572,2622.2,2622.0,0.6041]
[1748594649724,0.00572,2622.2,2622.1,2.01314]
[1748594649928,0.76813,2622.2,2622.1,2.01314]
[1748594650125,0.7625,2621.9,2621.8,0.0057265]
[1748594650330,0.76815,2622.2,2621.8,4.0507265]
[1748594650530,0.00572,2622.2,2622.1,0.76244]
[1748594650830,0.76813,2622.2,2622.1,0.76244]
[1748594651026,0.00572,2622.2,2622.1,1.97704]
[1748594651224,0.76813,2622.2,2622.1,1.2146]
[1748594651625,0.76247,2622.1,2621.9,0.76248]
[1748594651826,0.76247,2622.0,2621.9,4.045]
[1748594652026,0.76247,2622.0,2621.9,5.2596]
[1748594652226,0.00572,2622.2,2621.9,6.0221]
[1748594652227,0.76246,2622.1,2621.9,6.0221]
[1748594652624,0.76815,2622.2,2621.9,5.2596]
[1748594652830,0.00572,2622.2,2622.1,0.76244]
[1748594653127,0.76815,2622.2,2622.0,0.76245]
[1748594653433,0.76815,2622.2,2622.1,1.2146]
[1748594654336,0.76815,2622.2,2622.1,1.97704]
[1748594654536,0.00572,2622.2,2622.1,1.97704]
[1748594655536,0.76813,2622.2,2622.1,1.2146]
[1748594656436,0.76813,2622.2,2622.1,4.045]
[1748594656829,0.7625,2621.9,2621.8,0.0057265]
[1748594657031,0.7625,2621.9,2621.8,4.0507265]
[1748594657834,8.9703,2621.9,2621.8,0.0057265]
[1748594659145,3.9703,2621.9,2621.8,0.0057265]
[1748594660151,3.2078,2621.9,2621.8,4.8132565]
[1748594660455,3.9703,2621.9,2621.8,4.0507265]
[1748594661840,3.9703,2621.9,2621.8,0.0057265]
[1748594662444,3.2078,2621.9,2621.8,2.0642565]
[1748594662652,3.9703,2621.9,2621.8,2.0642565]
[1748594662944,3.2078,2621.9,2621.8,1.3017265]
[1748594663148,3.9703,2621.9,2621.8,1.3017265]
[1748594663551,3.9703,2621.9,2621.8,0.0057265]
[1748594664856,3.81266,2621.8,2620.9,3.2078]
[1748594665050,0.76279,2621.0,2620.7,4.045]
[1748594665250,0.76279,2621.0,2620.5,2.5966]
[1748594665251,3.2078,2621.3,2620.8,5.3715]
[1748594665453,3.2078,2621.3,2620.9,0.76279]
[1748594665656,0.76275,2621.1,2621.0,1.3265]
[1748594665855,0.76279,2620.9,2620.8,4.0507265]
[1748594666161,0.76279,2620.9,2620.8,5.3346265]
[1748594666350,0.76279,2620.9,2620.8,4.0507265]
[1748594669060,0.76275,2621.1,2621.0,0.76275]
[1748594669553,0.76273,2621.1,2621.0,0.76274]
[1748594669755,0.6657,2621.2,2620.8,0.0057265]
[1748594669955,0.76279,2620.9,2620.8,0.0057265]
[1748594672452,1.2237,2621.1,2620.8,0.0057265]
[1748594672658,0.76277,2621.0,2620.9,0.76276]
[1748594672859,0.76277,2621.0,2620.9,2.05616]
[1748594673460,0.76277,2621.0,2620.9,1.2934]
[1748594673859,0.76277,2621.0,2620.9,2.05619]
[1748594674563,0.76277,2621.0,2620.9,1.2934]
[1748594674761,0.76279,2620.9,2620.8,0.0057265]
[1748594677164,2.66689,2620.9,2620.8,0.0057265]
[1748594677362,0.76291,2620.5,2620.4,4.053]
[1748594677564,0.76296,2620.3,2620.2,1.3093]
[1748594677760,0.76295,2620.4,2620.3,0.76294]
[1748594677963,1.4024,2620.6,2620.5,0.76291]
[1748594678265,3.2078,2620.8,2620.4,1.90734]
[1748594678564,0.76288,2620.6,2620.5,6.8076]
[1748594678964,0.76291,2620.5,2620.4,3.2078]
[1748594679160,0.76291,2620.5,2620.4,8.02374]
[1748594679469,0.76289,2620.6,2620.5,0.7629]
[1748594679767,0.76288,2620.6,2620.5,1.3376]
[1748594679967,0.0057265,2620.8,2620.5,1.3376]
[1748594680357,0.76288,2620.6,2620.5,2.10049]
[1748594680565,0.76288,2620.6,2620.5,1.3376]
[1748594680765,0.95358,2620.6,2620.5,1.3376]
[1748594681467,0.76271,2621.2,2621.1,0.76272]
[1748594681668,0.76273,2621.1,2621.0,4.053]
[1748594681869,1.90684,2621.1,2620.3,0.0057265]
[1748594682061,2.4941,2621.0,2620.4,8.495]
[1748594682467,1.3994065,2621.0,2620.9,0.76279]
[1748594682867,0.6366265,2621.0,2620.8,0.76281]
[1748594683367,0.0057265,2621.0,2620.8,0.7628]
[1748594683572,0.76279,2620.9,2620.8,0.7628]
[1748594683965,0.7685065,2621.0,2620.8,0.7628]
[1748594684271,0.76279,2620.9,2620.7,0.76284]
[1748594684469,0.76279,2620.9,2620.8,1.3252]
[1748594684670,0.76279,2620.9,2620.8,2.08802]
[1748594684870,0.76279,2620.9,2620.8,1.3252]
[1748594685065,0.76279,2620.9,2620.8,2.08802]
[1748594685371,0.0057265,2621.0,2620.9,0.76279]
[1748594685772,0.76279,2620.9,2620.8,2.088]
[1748594685968,0.0057265,2621.0,2620.8,2.088]
[1748594686168,0.76279,2620.9,2620.8,2.088]
[1748594686771,0.7684965,2621.0,2620.8,1.3252]
[1748594686971,0.76279,2620.9,2620.8,2.088]
[1748594687376,0.7685065,2621.0,2620.9,0.76279]
[1748594687669,0.0057265,2621.0,2620.9,0.76279]
[1748594688075,0.0057265,2621.0,2620.5,1.90725]
[1748594688076,1.90698,2620.9,2620.6,4.053]
[1748594688374,0.76285,2620.7,2620.6,4.053]
[1748594689673,2.76604,2620.8,2620.7,0.76285]
[1748594689875,0.76285,2620.7,2620.6,4.81587]
[1748594690177,0.76279,2620.9,2620.8,0.76279]
[1748594690975,0.0057265,2621.0,2620.9,0.76279]
[1748594691175,0.0057265,2621.0,2620.9,1.38979]
[1748594691474,0.7684865,2621.0,2620.9,0.627]
[1748594691670,0.76279,2620.9,2620.8,0.76279]
[1748594691874,0.76281,2620.9,2620.8,0.76281]
[1748594692069,0.0057265,2621.0,2620.9,0.76279]
[1748594692274,0.76279,2620.9,2620.8,1.9857]
[1748594692476,0.76279,2620.9,2620.8,1.2229]
[1748594692865,0.76279,2620.9,2620.8,1.98572]
[1748594693277,0.76279,2620.9,2620.8,1.2229]
[1748594693574,0.76279,2620.9,2620.8,1.98572]
[1748594694075,0.0057265,2621.0,2620.9,0.76279]
[1748594694076,0.7684965,2621.0,2620.9,0.76279]
[1748594694274,0.0057265,2621.0,2620.9,0.76279]
[1748594694479,0.7684865,2621.0,2620.9,0.76279]
[1748594694878,1.8623875,2621.0,2620.9,0.76279]
[1748594695080,1.0996275,2621.0,2620.8,1.2229]
[1748594695374,0.0057265,2621.0,2620.9,0.76279]
[1748594695571,0.7684865,2621.0,2620.9,0.76279]
[1748594695770,1.85971378,2621.0,2620.9,0.76279]
[1748594696376,0.76279,2620.9,2620.8,1.98571]
[1748594696576,0.7685065,2621.0,2620.9,0.76279]
[1748594696780,0.7685065,2621.0,2620.9,2.01779]
[1748594696965,1.85955612,2621.0,2620.9,2.01779]
[1748594697171,1.85955612,2621.0,2620.9,1.255]
[1748594697767,1.85955612,2621.0,2620.7,3.8152]
[1748594697768,0.76285,2620.7,2620.6,4.68]
[1748594698176,0.76285,2620.7,2620.6,4.053]
[1748594698680,0.76281,2620.9,2620.8,0.76281]
[1748594700076,0.01687327,2621.0,2620.8,0.76281]
[1748594700280,0.01687327,2621.0,2620.9,1.2668]
[1748594700577,0.76282,2620.8,2620.7,3.2078]
[1748594700784,0.76285,2620.7,2620.6,4.044]
[1748594701579,0.6105,2620.9,2620.8,0.76282]
[1748594701774,0.76281,2620.9,2620.8,0.76281]
[1748594702675,0.76282,2620.8,2620.7,2.02963]
[1748594702880,0.76282,2620.8,2620.7,1.2668]
[1748594703675,0.76281,2620.9,2620.8,0.76281]
[1748594703883,0.76282,2620.8,2620.7,1.2668]
[1748594704181,0.76281,2620.9,2620.7,1.2668]
[1748594704487,0.76281,2620.9,2620.8,0.76281]
[1748594704979,0.01687327,2621.0,2620.7,1.2668]
[1748594704980,0.76282,2620.8,2620.7,1.2668]
[1748594705278,0.76282,2620.8,2620.7,2.02965]
[1748594706580,0.76282,2620.8,2620.7,1.2668]
[1748594707778,0.76282,2620.8,2620.7,2.02965]
[1748594708983,0.76282,2620.8,2620.7,1.2668]
[1748594709181,0.76282,2620.8,2620.7,2.02965]
[1748594710084,0.76282,2620.8,2620.7,1.2668]
[1748594710480,0.76285,2620.7,2620.6,0.76287]
[1748594710679,0.76285,2620.7,2620.6,4.80687]
[1748594710881,0.76285,2620.7,2620.6,6.09617]
[1748594711083,0.76284,2620.8,2620.7,0.76284]
[1748594711679,0.77965327,2621.0,2620.9,0.76279]
[1748594711884,0.76282,2620.8,2620.7,1.2826]
[1748594712383,0.76281,2620.9,2620.8,0.76281]
[1748594712778,0.76281,2620.9,2620.8,2.05301]
[1748594713084,0.01687327,2621.0,2620.9,0.76279]
[1748594713283,1.90656,2621.5,2620.9,0.76279]
[1748594713284,1.903,2621.7,2621.5,0.76259]
[1748594713581,1.903,2621.7,2621.2,3.2078]
[1748594713582,0.76262,2621.5,2621.2,3.2078]
[1748594713781,0.7627,2621.2,2621.1,1.2826]
[1748594713979,0.76269,2621.3,2621.1,5.3266]
[1748594714186,0.76266,2621.4,2621.3,0.76267]
[1748594714681,0.76266,2621.4,2621.3,4.80667]
[1748594715083,0.76266,2621.4,2621.3,4.044]
[1748594715284,0.76263,2621.5,2621.3,4.044]
[1748594715484,0.76263,2621.5,2621.4,0.76264]
[1748594715682,0.0057265,2621.6,2621.5,0.76262]
[1748594715983,0.76262,2621.5,2621.4,1.2445]
[1748594716184,0.0057265,2621.6,2621.4,1.2445]
[1748594716384,0.76262,2621.5,2621.4,2.00713]
[1748594716989,0.76262,2621.5,2621.4,1.2445]
[1748594718382,0.0057265,2621.6,2621.4,4.044]
[1748594718582,0.76262,2621.5,2621.4,4.044]
[1748594719282,0.7683365,2621.6,2621.5,0.76262]
[1748594719787,0.76262,2621.5,2621.4,4.80663]
[1748594719985,0.76262,2621.5,2621.4,6.12193]
[1748594720184,0.7683365,2621.6,2621.4,5.3593]
[1748594720389,0.0057265,2621.6,2621.4,6.12193]
[1748594720689,0.76262,2621.5,2621.4,6.0038]
[1748594722186,0.7683265,2621.6,2621.5,0.76261]
[1748594722383,0.7683265,2621.6,2621.5,1.3178]
[1748594722780,0.76264,2621.4,2621.3,0.6515]
[1748594722984,0.76264,2621.4,2621.3,4.6945]
[1748594723286,0.76261,2621.5,2621.4,0.76264]
[1748594723476,0.76261,2621.5,2621.4,2.08044]
[1748594723680,0.0057265,2621.6,2621.5,0.76262]
[1748594723889,0.0057265,2621.6,2621.5,1.98792]
[1748594724087,0.7683165,2621.6,2621.5,1.98792]
[1748594724382,3.2078,2622.4,2621.7,1.9064]
[1748594724582,3.2078,2622.4,2621.9,1.90625]
[1748594724790,3.2078,2622.4,2622.3,0.76238]
[1748594725090,0.76234,2622.5,2622.3,0.76238]
[1748594725290,0.76231,2622.6,2622.4,1.2253]
[1748594725493,3.9757965,2622.7,2622.5,0.7623]
[1748594725687,0.76231,2622.6,2622.4,1.98764]
[1748594726185,0.76232,2622.5,2622.4,1.2253]
[1748594726587,3.9758165,2622.7,2622.5,0.76231]
[1748594726785,0.7623,2622.6,2622.5,0.76231]
[1748594727085,0.0057265,2622.7,2622.5,1.2791]
[1748594727293,0.7679965,2622.7,2622.6,4.04]
[1748594729193,0.0057265,2622.7,2622.6,4.8023]
[1748594729391,0.7679965,2622.7,2622.6,4.04]
[1748594730087,0.0057265,2622.7,2622.6,4.8023]
[1748594731098,0.7679965,2622.7,2622.6,4.04]
[1748594731693,0.7623,2622.6,2622.5,1.2791]
[1748594731894,0.76232,2622.5,2622.4,3.2078]
[1748594732088,0.76232,2622.5,2622.4,7.2468]
[1748594732291,0.6573,2622.6,2622.4,7.2468]
[1748594732587,1.8855,2622.6,2622.4,7.2468]
[1748594732787,0.76232,2622.5,2622.4,8.00915]
[1748594732988,2.64782,2622.6,2622.4,8.00915]
[1748594733389,0.76232,2622.5,2622.4,7.2468]
[1748594733600,2.00922,2622.5,2622.4,7.2468]
[1748594733789,1.2469,2622.5,2622.4,8.00915]
[1748594733991,2.00922,2622.5,2622.4,8.00915]
[1748594734197,2.00922,2622.5,2622.4,4.039]
[1748594735886,2.00922,2622.5,2622.4,4.80135]
[1748594736086,2.00922,2622.5,2622.4,4.039]
[1748594736293,3.15272,2622.5,2622.2,4.038]
[1748594736489,3.15272,2622.5,2622.1,3.2135265]
[1748594736689,0.76241,2622.2,2622.1,7.2515265]
[1748594737090,0.76241,2622.2,2622.1,3.2135265]
[1748594737396,0.76241,2622.2,2622.1,7.2515265]
[1748594738288,0.76241,2622.2,2622.1,0.0057265]
[1748594742797,0.76241,2622.2,2622.1,0.7681665]
[1748594743104,1.2605,2622.6,2622.1,0.0057265]
[1748594743292,0.0057265,2622.7,2622.6,0.76229]
[1748594743492,0.0057265,2622.7,2622.6,4.80029]
[1748594743906,0.0057265,2622.7,2622.6,5.42609]
[1748594744399,0.0057265,2622.7,2622.6,8.63389]
[1748594744603,0.0057265,2622.7,2622.6,7.8716]
[1748594744902,0.0057265,2622.7,2622.6,8.63389]
[1748594745697,0.7679965,2622.7,2622.6,7.8716]
[1748594745901,0.0057265,2622.7,2622.6,8.63389]
[1748594746804,0.7679965,2622.7,2622.6,8.63389]
[1748594747103,0.0057265,2622.7,2622.6,8.63389]
[1748594748198,0.0057265,2622.7,2622.5,1.2956]
[1748594748199,0.7623,2622.6,2622.5,1.2956]
[1748594748503,0.7680165,2622.7,2622.5,6.09592]
[1748594748893,0.06993857,2622.6,2622.5,6.09592]
[1748594749099,3.2078,2623.3,2622.8,0.76222]
[1748594749306,0.7622,2623.0,2622.9,1.3048]
[1748594750706,0.76223,2622.9,2622.7,6.05245]
[1748594750999,0.76224,2622.8,2622.7,6.595]
[1748594751206,1.90531,2623.2,2622.7,7.35726]
[1748594751400,0.76224,2622.8,2622.7,7.35726]
[1748594751801,0.76223,2622.9,2622.7,7.35726]
[1748594752002,1.2181,2623.1,2622.9,0.76219]
[1748594752202,3.2078,2623.3,2623.1,0.76213]
[1748594752397,3.2078,2623.3,2623.0,0.76217]
[1748594752601,0.76218,2623.0,2622.8,2.00452]
[1748594753105,0.76218,2623.0,2622.9,0.76221]
[1748594753300,0.76218,2623.0,2622.9,1.2423]
[1748594753500,0.76218,2623.0,2622.9,6.04251]
[1748594753698,0.76217,2623.1,2622.9,6.04251]
[1748594754206,0.76218,2623.0,2622.9,4.038]
[1748594754703,0.76218,2623.1,2622.9,4.80021]
[1748594755109,0.76218,2623.1,2623.0,0.76218]
[1748594755305,0.76218,2623.1,2622.9,4.80019]
[1748594755604,0.76218,2623.0,2622.9,4.038]
[1748594755803,4.4259,2623.3,2622.9,4.80018]
[1748594756009,0.76217,2623.1,2622.9,4.80018]
[1748594756204,0.76213,2623.2,2623.1,0.76214]
[1748594756507,0.76215,2623.1,2623.0,1.99307]
[1748594756909,0.76214,2623.2,2623.1,0.76215]
[1748594757107,0.76211,2623.3,2623.1,0.76215]
[1748594757411,0.76211,2623.3,2623.0,1.2309]
[1748594757604,0.76212,2623.2,2623.1,0.76213]
[1748594758108,0.76212,2623.2,2623.0,1.2309]
[1748594758109,0.6552,2623.4,2623.0,1.2309]
[1748594758417,1.8506287,2623.3,2623.0,1.2309]
[1748594758713,0.7621,2623.3,2623.1,0.76213]
[1748594758902,0.76212,2623.3,2623.1,0.76213]
[1748594759302,0.76212,2623.3,2623.2,2.01862]
[1748594759509,3.2078,2623.6,2623.2,2.01862]
[1748594759710,0.76206,2623.4,2623.3,1.2565]
[1748594759910,1.8502826,2623.4,2623.3,1.2565]
[1748594760904,6.0882226,2623.4,2622.9,3.2078]
[1748594761107,0.76218,2623.0,2622.9,3.2078]
[1748594761613,0.76221,2622.9,2622.8,0.76224]
[1748594762009,0.76221,2622.9,2622.8,1.99814]
[1748594762209,0.7622,2623.0,2622.9,0.76221]
[1748594762407,0.76215,2623.2,2622.8,1.2359]
[1748594762609,0.6508,2623.5,2623.0,3.2078]
[1748594762909,0.76212,2623.2,2623.1,5.2679]
[1748594764708,0.76212,2623.2,2623.1,6.03005]
[1748594764911,0.6508,2623.5,2623.1,5.2679]
[1748594765116,0.76211,2623.3,2623.2,1.2973]
[1748594767404,1.9419,2623.5,2623.2,1.2973]
[1748594767606,3.2078,2623.6,2623.2,1.2973]
[1748594767810,3.2078,2623.6,2623.5,0.76204]
[1748594767811,3.96982,2623.6,2623.5,0.76204]
[1748594768011,0.76204,2623.5,2623.4,0.76204]
[1748594768209,5.77242,2623.9,2623.4,5.21374]
[1748594768416,0.76204,2623.5,2623.4,5.21374]
[1748594768618,0.76201,2623.6,2623.5,0.76202]
[1748594768809,0.76201,2623.6,2623.5,2.00592]
[1748594769005,0.76199,2623.7,2623.6,0.76199]
[1748594769221,1.2911,2623.8,2623.5,1.2439]
[1748594769408,0.76201,2623.6,2623.5,2.00592]
[1748594769612,1.2911,2623.8,2623.5,1.2439]
[1748594769913,0.76199,2623.7,2623.6,0.762]
[1748594770111,2.05307,2623.8,2623.7,0.76198]
[1748594770314,0.76198,2623.7,2623.6,0.76199]
[1748594770514,1.2911,2623.8,2623.7,0.76198]
[1748594770716,1.2911,2623.8,2623.5,5.2759]
[1748594770921,0.762,2623.7,2623.6,0.76199]
[1748594771222,0.76201,2623.6,2623.5,6.03792]
[1748594771423,1.2911,2623.8,2623.5,6.03792]
[1748594771616,1.2911,2623.8,2623.5,5.2759]
[1748594771921,0.762,2623.7,2623.6,0.76199]
[1748594772123,2.05307,2623.8,2623.5,5.2759]
[1748594772312,1.2911,2623.8,2623.5,5.2759]
[1748594772510,1.08904027,2623.7,2623.5,5.2759]
[1748594772709,1.4203,2624.0,2623.9,0.76192]
[1748594772908,0.76192,2623.9,2623.8,0.76193]
[1748594773109,1.42031,2624.0,2623.8,0.76193]
[1748594773516,4.4188,2624.2,2624.1,0.76186]
[1748594773718,5.50745103,2624.2,2623.9,1.329]
[1748594773924,4.4188,2624.2,2623.9,1.329]
[1748594774121,4.4188,2624.2,2624.1,0.76186]
[1748594774122,3.2078,2624.2,2624.1,0.76186]
[1748594774625,0.76171,2624.7,2624.1,3.96966]
[1748594774812,3.2078,2625.0,2624.5,3.96952]
[1748594774813,1.08792873,2624.6,2624.5,3.96952]
[1748594775017,2.4985,2624.9,2624.6,0.76171]
[1748594775325,3.2078,2625.6,2624.9,0.76161]
[1748594775526,3.62970306,2625.5,2625.0,0.00571548]
[1748594775821,0.76157,2625.1,2625.0,0.00571548]
[1748594776321,0.76172,2624.6,2624.5,3.2078]
[1748594776923,0.76186,2624.1,2624.0,3.2078]
[1748594778517,1.30617875,2624.3,2624.0,3.2078]
[1748594778720,0.00567875,2624.3,2624.0,3.2078]
[1748594778929,0.76183,2624.2,2624.1,1.9371]
[1748594779626,0.76186,2624.1,2624.0,3.2078]
[1748594780420,0.83179857,2624.1,2624.0,3.2078]
[1748594783522,0.06993857,2624.1,2624.0,3.2078]
[1748594783729,0.83179857,2624.1,2624.0,3.2078]
[1748594784127,0.83179857,2624.1,2624.0,3.8424]
[1748594784317,0.83179857,2624.1,2624.0,4.60429]
[1748594784518,0.83179857,2624.1,2624.0,5.93839]
[1748594785220,0.06993857,2624.1,2624.0,5.93839]
[1748594785531,0.83179857,2624.1,2624.0,5.93839]
[1748594785832,0.06993857,2624.1,2624.0,5.93839]
[1748594786930,0.00567875,2624.3,2624.2,0.76183]
[1748594787124,0.00567875,2624.3,2624.2,4.78683]
[1748594787330,0.76747875,2624.3,2624.2,4.025]
[1748594787531,0.76747875,2624.3,2624.2,5.3426]
[1748594790332,0.76186,2624.1,2624.0,3.8424]
[1748594790633,0.83179857,2624.1,2624.0,3.8424]
[1748594790826,0.83179857,2624.1,2624.0,3.2078]
[1748594791535,0.83179857,2624.1,2624.0,3.96969]
[1748594791730,0.06993857,2624.1,2624.0,5.27629]
[1748594792033,0.83179857,2624.1,2624.0,5.27629]
[1748594793731,0.83179857,2624.1,2624.0,4.5144]
[1748594794126,0.83179857,2624.1,2624.0,5.27629]
[1748594795527,0.83179857,2624.1,2624.0,4.5144]
[1748594797031,0.83179857,2624.1,2624.0,3.2078]
[1748594797226,0.76192,2623.9,2623.8,0.00571548]
[1748594797826,2.08112,2623.9,2623.8,0.00571548]
[1748594798133,2.08112,2623.9,2623.8,0.76766548]
[1748594798333,0.06993857,2624.1,2624.0,0.76189]
[1748594798627,0.06993857,2624.1,2624.0,3.96969]
[1748594798822,0.06993857,2624.1,2624.0,7.99369]
[1748594799023,0.00567875,2624.3,2624.2,0.76183]
[1748594800028,1.3192,2625.1,2625.0,0.7616]
[1748594800224,0.76155,2625.2,2624.9,3.96941]
[1748594800431,1.84986321,2625.1,2625.0,0.7616]
[1748594800627,1.08829321,2625.1,2625.0,0.7616]
[1748594800824,2.5677,2625.5,2625.0,0.7616]
[1748594800825,0.7615,2625.4,2625.2,0.76152]
[1748594801030,1.0880859,2625.3,2625.2,0.76152]
[1748594801432,0.76149,2625.4,2625.3,0.76151]
[1748594801631,1.84923123,2625.4,2625.3,0.76151]
[1748594802333,1.08773537,2625.4,2625.3,0.76151]
[1748594803233,1.08773537,2625.4,2625.2,0.76152]
[1748594803435,0.76151,2625.3,2625.2,0.76152]
[1748594803634,2.06779,2625.4,2625.3,0.76151]
[1748594803826,2.39340502,2625.4,2625.2,3.96932]
[1748594804029,0.76151,2625.3,2625.2,4.5165]
[1748594804241,0.76151,2625.3,2625.2,3.2078]
[1748594804432,1.08680828,2625.3,2625.0,0.612]
[1748594804632,0.76157,2625.1,2625.0,0.612]
[1748594804838,1.84837828,2625.1,2625.0,1.3736]
[1748594805338,1.84837828,2625.1,2625.0,0.612]
[1748594805838,1.08680828,2625.1,2625.0,1.3736]
[1748594806026,1.08680828,2625.1,2625.0,2.6961]
[1748594806431,0.76156,2625.2,2625.1,0.76157]
[1748594806742,1.07170876,2625.2,2625.0,1.9345]
[1748594807037,4.79148606,2625.1,2625.0,2.6961]
[1748594809439,1.07170876,2625.1,2625.0,2.6961]
[1748594809738,0.00571548,2625.5,2625.2,1.90387]
[1748594810040,0.00571548,2625.5,2625.4,0.76149]
[1748594810336,0.00571548,2625.5,2625.3,7.2308]
[1748594810537,0.76149,2625.4,2625.3,8.5132]
[1748594810738,0.76154,2625.2,2625.1,0.6189]
[1748594811039,1.2837,2625.4,2625.1,1.38045]
[1748594811240,2.0452,2625.4,2625.2,0.76154]
[1748594811437,0.7615,2625.4,2625.3,0.76151]
[1748594811744,0.7615,2625.4,2625.2,1.2824]
[1748594811940,0.76719548,2625.5,2625.3,0.7615]
[1748594812141,0.00571548,2625.5,2625.4,2.09299]
[1748594812341,0.00571548,2625.5,2625.1,0.6189]
[1748594812542,0.7615,2625.4,2625.2,5.3545]
[1748594812736,0.7615,2625.4,2625.2,6.11602]
[1748594812936,0.7615,2625.4,2625.3,0.76152]
[1748594813140,0.7615,2625.4,2625.2,6.11603]
[1748594813340,0.7615,2625.4,2625.3,0.76152]
[1748594813634,2.07789548,2625.5,2625.2,5.3545]
[1748594813841,0.76719548,2625.5,2625.3,1.3315]
[1748594814140,0.00571548,2625.5,2625.4,0.76149]
[1748594814937,0.76717548,2625.5,2625.4,0.76149]
[1748594815337,0.00571548,2625.5,2625.4,0.76149]
[1748594816845,5.2138,2626.1,2625.9,0.76132]
[1748594817139,4.4525,2626.1,2626.0,0.76131]
[1748594817339,3.2078,2626.1,2626.0,0.76131]
[1748594817842,3.2078,2626.1,2625.9,0.76133]
[1748594818034,2.64152,2626.0,2625.9,0.76133]
[1748594818234,1.8802,2626.0,2625.9,0.76133]
[1748594819535,2.64151,2626.0,2625.9,0.76133]
[1748594820446,1.8802,2626.0,2625.9,0.76133]
[1748594820649,3.2078,2626.4,2626.1,0.76128]
[1748594820942,0.76128,2626.2,2625.8,1.2895]
[1748594821137,1.3025,2626.1,2626.0,0.76129]
[1748594821345,0.76132,2626.0,2625.8,1.2895]
[1748594821542,1.3025,2626.1,2626.0,0.76131]
[1748594821744,2.06379,2626.1,2626.0,0.76131]
[1748594822245,0.76138,2625.8,2625.6,4.4909]
[1748594822444,1.3025,2625.7,2625.6,5.25231]
[1748594823338,0.603,2626.0,2625.9,0.76134]
[1748594823545,1.3025,2626.1,2626.0,0.76131]
[1748594824146,3.2078,2626.7,2626.0,3.2078]
[1748594824345,0.76125,2626.3,2625.9,4.016]
[1748594824643,1.8904,2626.6,2625.9,4.016]
[1748594824850,0.76121,2626.4,2626.3,0.76122]
[1748594825143,0.76126,2626.2,2626.1,0.00571548]
[1748594826242,6.02187246,2626.2,2624.9,3.2078]
[1748594826444,0.76156,2625.2,2625.0,0.7616]
[1748594826644,0.76156,2625.2,2625.1,0.76157]
[1748594826844,0.76156,2625.2,2624.9,3.2078]
[1748594826845,0.76153,2625.3,2625.2,0.76153]
[1748594827047,2.65191,2625.4,2625.3,0.76152]
[1748594827243,0.76152,2625.3,2625.2,0.76152]
[1748594827944,0.76155,2625.2,2625.1,0.76726548]
[1748594829149,0.76155,2625.2,2625.1,0.00571548]
[1748594830450,3.96935,2625.2,2625.1,0.00571548]
[1748594830649,0.76155,2625.2,2625.1,0.00571548]
[1748594835948,3.2078,2625.5,2625.3,0.7615]
[1748594836252,0.7615,2625.4,2625.3,0.76149]
[1748594838049,0.76148,2625.5,2625.4,0.76147]
[1748594838256,0.76148,2625.5,2625.4,0.76148]
[1748594838459,0.7615,2625.4,2625.3,0.76149]
[1748594839151,5.11145,2625.5,2625.1,0.00571548]
[1748594839353,0.76155,2625.2,2625.1,0.00571548]
[1748594840254,0.76153,2625.3,2625.2,0.76151]
[1748594840757,0.76154,2625.2,2625.1,0.76727548]
[1748594841460,0.76154,2625.2,2625.1,0.00571548]
[1748594841650,13.2228,2625.2,2623.6,3.79450958]
[1748594841854,3.2078,2624.0,2623.6,0.762]
[1748594842056,3.2078,2624.0,2623.4,3.2078]
[1748594842057,0.76193,2623.9,2623.7,0.76197]
[1748594842250,5.92039,2624.5,2623.4,3.2078]
[1748594842251,5.11219,2624.5,2623.5,1.2305]
[1748594842561,0.7619,2624.0,2623.8,0.76194]
[1748594842762,0.76192,2623.9,2623.7,0.76767548]
[1748594843062,0.76195,2623.8,2623.7,0.00571548]
[1748594845855,3.2078,2623.9,2623.7,0.00571548]
[1748594846259,3.96973,2623.9,2623.7,0.76768548]
[1748594846655,0.76195,2623.8,2623.7,0.00571548]
[1748594847163,1.97825,2623.8,2623.7,4.02271548]
[1748594847659,1.97825,2623.8,2623.7,0.00571548]
[1748594849960,2.61645,2623.8,2623.7,0.00571548]
[1748594850167,1.2163,2623.8,2623.7,0.76769548]
[1748594850870,3.2078,2623.9,2623.8,0.76195]
[1748594851062,3.96972,2623.9,2623.8,0.76195]
[1748594851670,3.2078,2623.9,2623.8,0.76195]
[1748594852560,3.2078,2623.9,2623.8,4.79595]
[1748594852864,0.7619,2624.0,2623.9,0.76192]